bitfinex/quotes_BTCUSD_20250303
["timestamp","ask_amount","ask_price","bid_price","bid_amount"]
[1740976024166,0.0021707,92912.0,92911.0,0.80008919]
[1740976024481,0.0021707,92912.0,92911.0,5.53104019]
[1740976028071,0.0021707,92912.0,92911.0,4.77296317]
[1740976028276,0.03212146,92912.0,92911.0,0.66879282]
[1740976028627,0.03212146,92912.0,92911.0,0.30949682]
[1740976028837,0.03212146,92912.0,92911.0,0.03411682]
[1740976029044,0.03400494,92912.0,92911.0,0.03411682]
[1740976029240,0.02995076,92910.0,92909.0,0.02011682]
[1740976030403,0.17713547,92910.0,92909.0,0.02011682]
[1740976031387,0.03095076,92910.0,92909.0,0.02711682]
[1740976031768,0.03195076,92910.0,92909.0,0.03411682]
[1740976032101,0.03195076,92910.0,92909.0,0.02711682]
[1740976032889,0.03295076,92910.0,92909.0,0.03411682]
[1740976033950,0.17825176,92910.0,92909.0,0.03411682]
[1740976034151,0.03295076,92910.0,92909.0,0.03411682]
[1740976034351,0.68744613,92910.0,92909.0,0.03411682]
[1740976034587,0.68556247,92910.0,92909.0,0.03411682]
[1740976034787,0.68556247,92910.0,92909.0,0.014]
[1740976035266,0.68456247,92910.0,92909.0,0.007]
[1740976035642,0.55989813,92910.0,92909.0,0.007]
[1740976036044,0.55989813,92910.0,92909.0,0.01]
[1740976036340,0.70519913,92910.0,92909.0,0.01]
[1740976036703,0.145304,92909.0,92902.0,0.0003414]
[1740976036903,0.02995076,92903.0,92902.0,0.0003414]
[1740976038667,0.03283458,92903.0,92902.0,0.0073414]
[1740976038873,0.17914658,92903.0,92902.0,0.0133414]
[1740976040128,0.03383458,92903.0,92902.0,0.0133414]
[1740976041087,0.03195076,92903.0,92902.0,0.0133414]
[1740976041939,0.34992445,92903.0,92902.0,0.0133414]
[1740976042719,0.49523645,92903.0,92902.0,0.0133414]
[1740976044938,0.34992445,92903.0,92902.0,0.0133414]
[1740976045130,0.49523645,92903.0,92902.0,0.0133414]
[1740976045713,0.34992445,92903.0,92902.0,0.0133414]
[1740976047486,0.49523645,92903.0,92902.0,0.0133414]
[1740976047643,0.46528569,92903.0,92902.0,0.0133414]
[1740976047984,0.49523645,92903.0,92902.0,0.0133414]
[1740976051136,0.49295445,92903.0,92902.0,0.0133414]
[1740976051536,0.64969147,92903.0,92902.0,0.0133414]
[1740976051943,0.73974223,92903.0,92902.0,0.0133414]
[1740976052176,0.72909147,92903.0,92902.0,0.0133414]
[1740976052324,0.73982069,92903.0,92902.0,0.0133414]
[1740976052644,0.73982069,92903.0,92902.0,0.0003414]
[1740976052854,0.74082069,92903.0,92902.0,0.0103414]
[1740976053255,0.74082069,92903.0,92902.0,0.0033414]
[1740976053458,0.73982069,92903.0,92902.0,0.0033414]
[1740976053620,0.74082069,92903.0,92902.0,0.0103414]
[1740976054062,0.74082069,92903.0,92902.0,0.0073414]
[1740976054703,0.74082069,92903.0,92902.0,0.0103414]
[1740976055063,0.73009147,92903.0,92902.0,0.0103414]
[1740976057771,0.74088839,92903.0,92902.0,0.0103414]
[1740976066224,0.45747947,92903.0,92902.0,0.0103414]
[1740976066795,0.60279147,92903.0,92902.0,0.0103414]
[1740976068546,0.60296187,92903.0,92902.0,0.0103414]
[1740976070328,0.45764987,92903.0,92902.0,0.0103414]
[1740976070531,0.60296187,92903.0,92902.0,0.0103414]
[1740976070714,0.45764987,92903.0,92902.0,0.0103414]
[1740976071155,0.60296187,92903.0,92902.0,0.0103414]
[1740976077907,0.45764987,92903.0,92902.0,0.0103414]
[1740976078201,0.45764987,92903.0,92902.0,0.1556554]
[1740976078583,0.42769911,92903.0,92902.0,0.0103414]
[1740976078965,0.34881285,92903.0,92902.0,0.1556554]
[1740976079095,0.34881285,92903.0,92902.0,0.16654123]
[1740976080619,0.34881285,92903.0,92902.0,0.16354123]
[1740976080802,0.34981285,92903.0,92902.0,0.17054123]
[1740976080999,0.34881285,92903.0,92902.0,0.16354123]
[1740976081338,0.34881285,92903.0,92902.0,0.17054123]
[1740976081923,0.34881285,92903.0,92902.0,0.1596554]
[1740976082947,0.49412485,92903.0,92902.0,0.0143414]
[1740976083204,0.34881285,92903.0,92902.0,0.0143414]
[1740976083359,0.34881285,92903.0,92902.0,0.1596554]
[1740976083519,0.60296187,92903.0,92902.0,0.0143414]
[1740976083723,0.65086187,92903.0,92902.0,0.0143414]
[1740976086243,0.65086187,92903.0,92902.0,0.0121707]
[1740976086520,0.07995076,92895.0,92894.0,0.07498807]
[1740976086720,0.07995076,92895.0,92894.0,0.00187489]
[1740976086721,0.46009722,92895.0,92894.0,0.00187489]
[1740976087025,0.46009722,92895.0,92884.0,0.0003404]
[1740976087026,0.145333,92890.0,92884.0,0.0003404]
[1740976087199,0.14534,92886.0,92884.0,0.00074327]
[1740976087397,0.1406722,92885.0,92884.0,0.00074327]
[1740976087715,0.70176258,92885.0,92884.0,0.00074327]
[1740976087919,0.69987816,92885.0,92884.0,0.00074327]
[1740976088955,0.70087816,92885.0,92884.0,0.00174327]
[1740976089521,0.70087816,92885.0,92884.0,0.00074327]
[1740976090115,0.69987816,92885.0,92884.0,0.00074327]
[1740976090321,0.70187816,92885.0,92884.0,0.00074327]
[1740976090756,0.99987816,92885.0,92884.0,0.00174327]
[1740976090954,1.00187816,92885.0,92884.0,0.00174327]
[1740976091389,1.02423816,92885.0,92884.0,0.00074327]
[1740976091609,0.97423816,92885.0,92884.0,0.00074327]
[1740976091774,0.74821916,92885.0,92884.0,0.00074327]
[1740976091985,0.74521916,92885.0,92884.0,0.00074327]
[1740976092428,0.5931684,92885.0,92884.0,0.00074327]
[1740976092799,0.62311916,92885.0,92884.0,0.00074327]
[1740976093022,0.4478274,92885.0,92884.0,0.00074327]
[1740976093220,0.47777816,92885.0,92884.0,0.00074327]
[1740976093419,0.48077816,92885.0,92884.0,0.00074327]
[1740976093619,0.47777816,92885.0,92884.0,0.00074327]
[1740976093795,0.62311916,92885.0,92884.0,0.00074327]
[1740976094007,0.47877816,92885.0,92884.0,0.00074327]
[1740976094215,0.47777816,92885.0,92884.0,0.00374327]
[1740976094719,0.62311916,92885.0,92884.0,0.00074327]
[1740976094925,0.62411916,92885.0,92884.0,0.00774327]
[1740976095538,0.47877816,92885.0,92884.0,0.00774327]
[1740976096363,0.34864245,92885.0,92884.0,0.15308527]
[1740976096687,0.31869169,92885.0,92884.0,0.16400263]
[1740976096822,0.34864245,92885.0,92884.0,0.16400263]
[1740976097661,0.34764245,92885.0,92884.0,0.15700263]
[1740976097903,0.34864245,92885.0,92884.0,0.16400263]
[1740976098289,0.34964245,92885.0,92884.0,0.16600263]
[1740976098484,0.34864245,92885.0,92884.0,0.15900263]
[1740976098684,0.34964245,92885.0,92884.0,0.16600263]
[1740976102035,0.34964245,92885.0,92884.0,0.46600263]
[1740976103629,0.34964245,92885.0,92884.0,0.32066063]
[1740976104054,0.34964245,92885.0,92884.0,0.46600263]
[1740976105991,0.34964245,92885.0,92884.0,1.91726663]
[1740976106194,0.03195076,92885.0,92884.0,1.50209763]
[1740976107495,0.03195076,92885.0,92884.0,0.32066063]
[1740976107689,0.03195076,92885.0,92884.0,0.46600263]
[1740976112685,0.03195076,92885.0,92884.0,0.45508527]
[1740976114109,0.03195076,92885.0,92884.0,0.30974327]
[1740976116073,0.03195076,92885.0,92884.0,0.45508527]
[1740976116847,0.03195076,92885.0,92884.0,0.30974327]
[1740976117786,0.03195076,92885.0,92884.0,0.45508527]
[1740976141023,0.03195076,92885.0,92884.0,2.71128227]
[1740976141221,0.03195076,92885.0,92884.0,1.96356027]
[1740976141901,0.03195076,92885.0,92884.0,1.93587627]
[1740976142068,0.03095076,92885.0,92884.0,1.92887627]
[1740976142262,0.03095076,92885.0,92884.0,1.99309828]
[1740976142462,0.03095076,92885.0,92884.0,2.00009828]
[1740976142635,0.02995076,92885.0,92884.0,1.99809828]
[1740976142842,0.31769169,92892.0,92891.0,0.145331]
[1740976143068,0.31769169,92892.0,92891.0,1.991787]
[1740976143383,0.31769169,92892.0,92891.0,1.623952]
[1740976143566,0.34764245,92892.0,92891.0,1.623952]
[1740976143761,0.31769169,92892.0,92891.0,1.623952]
[1740976144083,0.34764245,92892.0,92891.0,1.623952]
[1740976144485,0.31769169,92892.0,92891.0,1.548791]
[1740976144660,0.34764245,92892.0,92891.0,1.548791]
[1740976144988,0.34764245,92892.0,92891.0,0.796778]
[1740976145281,0.34764245,92892.0,92888.0,0.3]
[1740976145484,0.34764245,92892.0,92891.0,0.145331]
[1740976145702,0.34764245,92892.0,92891.0,0.294867]
[1740976145837,0.34764245,92892.0,92891.0,0.37993]
[1740976146050,0.34864245,92892.0,92891.0,0.38693]
[1740976146630,0.34764245,92892.0,92891.0,0.37993]
[1740976146836,0.34864245,92892.0,92891.0,0.38693]
[1740976147674,0.34864245,92892.0,92891.0,0.39393]
[1740976148059,0.31869169,92892.0,92891.0,0.39393]
[1740976148322,0.34864245,92892.0,92891.0,0.39393]
[1740976148734,0.34864245,92892.0,92891.0,0.159331]
[1740976148946,0.34864245,92892.0,92891.0,0.930973]
[1740976149245,0.31869169,92892.0,92891.0,0.930973]
[1740976149455,0.34864245,92892.0,92891.0,0.930973]
[1740976151247,0.31869169,92892.0,92891.0,0.930973]
[1740976151450,0.34864245,92892.0,92891.0,0.930973]
[1740976152420,0.31869169,92892.0,92891.0,0.930973]
[1740976152564,0.34864245,92892.0,92891.0,0.930973]
[1740976155032,0.34864245,92892.0,92891.0,0.790789]
[1740976155233,0.34864245,92892.0,92891.0,0.556733]
[1740976155572,0.34864245,92892.0,92891.0,0.233571]
[1740976156707,0.31869169,92892.0,92891.0,0.233571]
[1740976158124,0.34864245,92892.0,92891.0,0.233571]
[1740976159333,0.34864245,92892.0,92891.0,0.08824]
[1740976159557,0.34864245,92892.0,92891.0,0.233571]
[1740976160390,0.31869169,92892.0,92891.0,0.233571]
[1740976160526,0.34864245,92892.0,92891.0,0.233571]
[1740976161354,0.34864245,92892.0,92891.0,0.2337414]
[1740976163109,0.34864245,92892.0,92891.0,0.0884104]
[1740976163489,0.34864245,92892.0,92891.0,0.2337414]
[1740976166944,0.34864245,92892.0,92891.0,0.5337414]
[1740976171874,0.31869169,92892.0,92891.0,0.6130414]
[1740976172074,0.31869169,92892.0,92891.0,2.4766264]
[1740976172413,0.34864245,92892.0,92891.0,0.4888364]
[1740976172799,0.03095076,92892.0,92891.0,0.4888364]
[1740976173036,0.03095076,92892.0,92891.0,0.3435054]
[1740976173207,0.03095076,92892.0,92891.0,0.0141704]
[1740976173439,0.17628076,92892.0,92891.0,0.0141704]
[1740976173642,0.28511778,92892.0,92891.0,0.0141704]
[1740976173841,0.72870947,92892.0,92891.0,0.0141704]
[1740976174804,0.72870947,92892.0,92891.0,0.0071704]
[1740976175006,0.72770947,92892.0,92891.0,0.0071704]
[1740976175543,0.72770947,92892.0,92891.0,0.0101704]
[1740976176325,0.72770947,92892.0,92891.0,0.0031704]
[1740976176528,0.72770947,92892.0,92891.0,0.0101704]
[1740976176709,0.47354245,92892.0,92891.0,0.1525014]
[1740976176891,0.34764245,92892.0,92891.0,0.1525014]
[1740976177095,0.34764245,92892.0,92891.0,0.1555014]
[1740976177766,0.34764245,92892.0,92891.0,0.1485014]
[1740976177966,0.34764245,92892.0,92891.0,0.1555014]
[1740976178753,0.34764245,92892.0,92891.0,0.1525014]
[1740976179421,0.34764245,92892.0,92891.0,0.1455014]
[1740976179689,0.34764245,92892.0,92891.0,0.0071704]
[1740976180084,0.34764245,92892.0,92891.0,0.1575014]
[1740976183575,0.49297245,92892.0,92891.0,0.0121704]
[1740976184653,0.34764245,92892.0,92891.0,0.1575014]
[1740976186721,0.34764245,92892.0,92891.0,0.8204684]
[1740976186957,0.34764245,92892.0,92891.0,0.8419184]
[1740976187133,0.34764245,92892.0,92891.0,0.7371694]
[1740976187335,0.34764245,92892.0,92891.0,0.6153214]
[1740976187650,0.34764245,92892.0,92891.0,0.3349094]
[1740976187855,0.34764245,92892.0,92891.0,0.1575014]
[1740976189011,0.34764245,92892.0,92891.0,0.2959214]
[1740976189741,0.34764245,92892.0,92891.0,0.3925649]
[1740976192228,0.34764245,92892.0,92891.0,0.2541449]
[1740976192422,0.34764245,92892.0,92891.0,0.4867009]
[1740976193435,0.34764245,92892.0,92891.0,0.4287009]
[1740976194039,0.34764245,92892.0,92891.0,0.2541449]
[1740976194689,0.34764245,92892.0,92891.0,0.4306589]
[1740976195312,0.34764245,92892.0,92891.0,0.1575014]
[1740976196497,0.34764245,92892.0,92891.0,0.0121704]
[1740976196745,0.34764245,92892.0,92891.0,0.1575014]
[1740976199582,0.34764245,92892.0,92891.0,0.0121704]
[1740976200631,0.36869142,92892.0,92891.0,0.0121704]
[1740976201202,0.51402142,92892.0,92891.0,0.0121704]
[1740976201356,0.36869142,92892.0,92891.0,0.0121704]
[1740976201775,0.51402142,92892.0,92891.0,0.0121704]
[1740976201997,0.36869142,92892.0,92891.0,0.0121704]
[1740976202207,0.51402142,92892.0,92891.0,0.0121704]
[1740976202393,0.74825844,92892.0,92891.0,0.0121704]
[1740976202867,0.60292844,92892.0,92891.0,0.0121704]
[1740976203072,0.47752844,92892.0,92891.0,0.1575014]
[1740976203453,0.47752844,92892.0,92891.0,0.0121704]
[1740976207142,0.47752844,92892.0,92891.0,0.1575014]
[1740976207548,0.47752844,92892.0,92891.0,0.0121704]
[1740976207745,0.62285844,92892.0,92891.0,0.0121704]
[1740976209142,0.70565844,92892.0,92891.0,0.0121704]
[1740976210110,0.75485844,92892.0,92891.0,0.0121704]
[1740976210536,0.60952844,92892.0,92891.0,0.0121704]
[1740976211509,0.75485844,92892.0,92891.0,0.0121704]
[1740976212382,0.17529176,92885.0,92884.0,0.00074327]
[1740976212582,0.02995076,92882.0,92881.0,0.005]
[1740976212727,0.60182447,92882.0,92881.0,0.005078]
[1740976214951,0.60182447,92882.0,92881.0,0.012078]
[1740976215697,0.60182447,92882.0,92881.0,0.005078]
[1740976216881,0.60182447,92882.0,92881.0,0.012078]
[1740976218112,0.64692447,92882.0,92881.0,0.012078]
[1740976218865,0.77762447,92882.0,92881.0,0.012078]
[1740976219962,0.77762447,92882.0,92881.0,0.005078]
[1740976220163,0.77962447,92882.0,92881.0,0.011078]
[1740976220367,0.77762447,92882.0,92881.0,0.011078]
[1740976220592,0.77762447,92882.0,92881.0,0.0052484]
[1740976220913,0.77762447,92882.0,92881.0,0.0062484]
[1740976221208,0.77962447,92882.0,92881.0,0.0062484]
[1740976221432,0.77962447,92882.0,92881.0,0.0052484]
[1740976221728,0.77762447,92882.0,92881.0,0.0062484]
[1740976222064,1.19611715,92882.0,92881.0,0.0062484]
[1740976222443,1.27023715,92882.0,92881.0,0.0062484]
[1740976222653,1.20974528,92882.0,92881.0,0.0062484]
[1740976223029,1.20974528,92882.0,92881.0,0.0052484]
[1740976223225,1.20974528,92882.0,92881.0,0.0062484]
[1740976223427,1.21174528,92882.0,92881.0,0.0062484]
[1740976223627,1.20974528,92882.0,92881.0,0.0062484]
[1740976224050,1.21174528,92882.0,92881.0,0.0062484]
[1740976224250,1.20974528,92882.0,92881.0,0.0052484]
[1740976224452,1.21274528,92882.0,92881.0,0.0052484]
[1740976224638,1.21474528,92882.0,92881.0,0.0052484]
[1740976224821,1.21274528,92882.0,92881.0,0.0052484]
[1740976225263,1.21474528,92882.0,92881.0,0.0052484]
[1740976226077,0.42995076,92878.0,92867.0,0.000341]
[1740976226230,0.80773878,92878.0,92867.0,0.000341]
[1740976227278,0.17533676,92856.0,92855.0,0.005]
[1740976227500,0.59850216,92856.0,92855.0,0.005]
[1740976227729,0.59661707,92856.0,92855.0,0.005]
[1740976228803,0.59661707,92856.0,92855.0,0.009]
[1740976229017,0.60746057,92856.0,92855.0,0.009]
[1740976229433,0.60746057,92856.0,92855.0,0.01]
[1740976229820,0.60746057,92856.0,92855.0,0.006]
[1740976230355,0.60746057,92856.0,92855.0,0.013]
[1740976230548,0.60746057,92856.0,92855.0,0.012]
[1740976230703,0.60746057,92856.0,92855.0,0.005]
[1740976230906,0.60746057,92856.0,92855.0,0.01]
[1740976231452,0.60746057,92856.0,92855.0,0.006]
[1740976231861,0.60746057,92856.0,92855.0,0.013]
[1740976232236,0.60746057,92856.0,92855.0,0.012]
[1740976232416,0.62902275,92856.0,92855.0,0.012]
[1740976233027,0.62902275,92856.0,92855.0,0.005]
[1740976233394,1.05802275,92856.0,92855.0,0.0052]
[1740976233619,1.05802275,92856.0,92813.0,0.0497]
[1740976233620,0.17537876,92829.0,92813.0,0.0497]
[1740976233819,0.59854459,92829.0,92813.0,0.0497]
[1740976233949,0.59665907,92829.0,92813.0,0.0497]
[1740976234852,0.59665907,92829.0,92828.0,0.013]
[1740976235096,0.59665907,92829.0,92828.0,0.01312085]
[1740976235273,0.59665907,92829.0,92828.0,0.01212085]
[1740976235592,0.61791031,92829.0,92828.0,0.01312085]
[1740976235748,0.61791031,92829.0,92828.0,0.01212085]
[1740976236139,0.61791031,92829.0,92828.0,0.00512085]
[1740976236367,0.61891031,92829.0,92828.0,0.01112085]
[1740976236852,0.61791031,92829.0,92828.0,0.00512085]
[1740976237056,0.47248231,92829.0,92828.0,0.00512085]
[1740976237259,0.44353155,92829.0,92828.0,0.01112085]
[1740976237632,0.61891031,92829.0,92828.0,0.01112085]
[1740976237767,0.61791031,92829.0,92828.0,0.00612085]
[1740976237988,0.61891031,92829.0,92828.0,0.01112085]
[1740976240730,0.47348231,92829.0,92828.0,0.01112085]
[1740976240940,0.47348231,92829.0,92828.0,0.08482085]
[1740976241141,0.47248231,92829.0,92828.0,0.09762103]
[1740976241313,0.47348231,92829.0,92828.0,0.10162103]
[1740976241506,0.45223107,92829.0,92828.0,0.23325085]
[1740976241727,0.34339405,92829.0,92828.0,0.24605103]
[1740976242043,0.34339405,92829.0,92828.0,0.24705103]
[1740976242266,0.34339405,92829.0,92828.0,0.10062103]
[1740976242792,0.34239405,92829.0,92828.0,0.09762103]
[1740976243087,0.34339405,92829.0,92828.0,0.09762103]
[1740976243677,0.34239405,92829.0,92828.0,0.09762103]
[1740976243841,0.34339405,92829.0,92828.0,0.09862103]
[1740976244041,0.34339405,92829.0,92828.0,0.09762103]
[1740976244255,0.34339405,92829.0,92828.0,0.24305103]
[1740976244453,0.34439405,92829.0,92828.0,0.24405103]
[1740976244856,0.34439405,92829.0,92828.0,0.09862103]
[1740976245752,1.34439405,92829.0,92828.0,0.09879143]
[1740976248020,1.34439405,92829.0,92828.0,0.24422143]
[1740976250608,1.34439405,92829.0,92828.0,0.09879143]
[1740976250949,1.31444329,92829.0,92828.0,0.09879143]
[1740976251150,1.34439405,92829.0,92828.0,0.09879143]
[1740976255803,1.34439405,92829.0,92828.0,0.24422143]
[1740976256383,1.34439405,92829.0,92828.0,0.09879143]
[1740976256838,1.34439405,92829.0,92828.0,0.24422143]
[1740976257998,1.31444329,92829.0,92828.0,0.24422143]
[1740976258217,1.34439405,92829.0,92828.0,0.24422143]
[1740976260277,1.34439405,92829.0,92828.0,0.23142125]
[1740976260495,1.34439405,92829.0,92828.0,0.24422143]
[1740976261046,1.34439405,92829.0,92828.0,0.09879143]
[1740976261172,1.34439405,92829.0,92828.0,0.01909143]
[1740976261881,1.34439405,92829.0,92828.0,0.16452143]
[1740976262079,1.34339405,92829.0,92828.0,0.16452143]
[1740976262213,1.34239405,92829.0,92828.0,0.16752143]
[1740976262392,1.34339405,92829.0,92828.0,0.16752143]
[1740976262838,1.34339405,92829.0,92828.0,0.16452143]
[1740976263044,1.34439405,92829.0,92828.0,0.16852143]
[1740976264907,1.31444329,92829.0,92828.0,2.17833943]
[1740976265108,1.34439405,92829.0,92828.0,0.50839443]
[1740976265332,1.34439405,92829.0,92828.0,0.30032143]
[1740976265703,1.34439405,92829.0,92828.0,0.41124143]
[1740976267774,1.03195076,92829.0,92828.0,0.41124143]
[1740976272457,1.03195076,92829.0,92828.0,0.30032143]
[1740976273170,1.03195076,92829.0,92828.0,1.23806043]
[1740976273573,1.03195076,92829.0,92828.0,0.82507543]
[1740976274114,1.03195076,92829.0,92828.0,0.72792143]
[1740976274410,1.03195076,92829.0,92828.0,0.45702143]
[1740976274647,1.03195076,92829.0,92828.0,0.16852143]
[1740976277141,1.03195076,92829.0,92828.0,0.02309143]
[1740976277441,1.03195076,92829.0,92828.0,0.16852143]
[1740976278445,1.03195076,92829.0,92828.0,0.02309143]
[1740976278678,1.28621578,92829.0,92828.0,0.02309143]
[1740976279119,1.28621578,92829.0,92828.0,0.01029125]
[1740976280617,1.28521578,92829.0,92828.0,0.00629125]
[1740976280854,1.28521578,92829.0,92828.0,0.01029125]
[1740976280855,1.33271578,92829.0,92828.0,0.01029125]
[1740976281109,1.41341578,92829.0,92828.0,0.00929125]
[1740976281356,1.41341578,92829.0,92828.0,0.00529125]
[1740976281581,1.41241578,92829.0,92828.0,0.00729125]
[1740976281806,1.41341578,92829.0,92828.0,0.00929125]
[1740976282274,0.02995076,92806.0,92774.0,0.032394]
[1740976282515,0.02995076,92806.0,92801.0,0.219837]
[1740976282937,0.02995076,92806.0,92801.0,0.23829364]
[1740976283108,0.02995076,92806.0,92805.0,0.145466]
[1740976283318,0.02995076,92806.0,92805.0,0.140466]
[1740976284216,0.02995076,92807.0,92803.0,0.145468]
[1740976284418,0.02995076,92807.0,92805.0,0.145465]
[1740976284819,0.02995076,92807.0,92806.0,0.145464]
[1740976285318,0.03095076,92807.0,92806.0,0.145464]
[1740976285679,0.02995076,92807.0,92806.0,0.145464]
[1740976286479,0.03095076,92807.0,92806.0,0.147464]
[1740976287097,0.03195076,92807.0,92806.0,0.151464]
[1740976287632,0.03095076,92807.0,92806.0,0.147464]
[1740976287836,0.03095076,92807.0,92806.0,0.149464]
[1740976288010,0.03195076,92807.0,92806.0,0.151464]
[1740976288214,0.002,92807.0,92806.0,0.147464]
[1740976288415,0.02995076,92807.0,92801.0,0.01845664]
[1740976288737,0.03195076,92807.0,92806.0,0.006]
[1740976289058,0.03095076,92807.0,92806.0,0.004]
[1740976289260,0.03095076,92807.0,92806.0,0.006]
[1740976289261,0.03195076,92807.0,92806.0,0.006]
[1740976289619,0.03095076,92807.0,92806.0,0.004]
[1740976290016,0.03095076,92807.0,92801.0,0.01845664]
[1740976290017,0.02995076,92807.0,92801.0,0.15616963]
[1740976290191,0.03095076,92807.0,92806.0,0.01174358]
[1740976290425,0.03095076,92807.0,92806.0,0.004]
[1740976290643,0.03095076,92807.0,92806.0,0.01174358]
[1740976290879,0.02995076,92809.0,92800.0,0.05004014]
[1740976290995,0.00188558,92811.0,92800.0,0.05004014]
[1740976290996,0.03095076,92807.0,92806.0,0.002]
[1740976291199,0.03095076,92807.0,92806.0,0.004]
[1740976291668,0.03095076,92807.0,92806.0,0.002]
[1740976291864,0.03095076,92807.0,92800.0,0.05004014]
[1740976291865,0.13878778,92807.0,92800.0,0.05004014]
[1740976292094,0.02995076,92801.0,92800.0,0.05004014]
[1740976293144,0.02995076,92801.0,92800.0,0.05404014]
[1740976293355,0.02995076,92801.0,92800.0,0.19951414]
[1740976293547,0.02995076,92801.0,92800.0,0.19551414]
[1740976293942,0.001,92801.0,92800.0,0.19951414]
[1740976294146,0.03095076,92801.0,92800.0,0.19951414]
[1740976294348,0.02995076,92801.0,92800.0,0.19551414]
[1740976294552,0.03095076,92801.0,92800.0,0.19751414]
[1740976294787,0.03195076,92801.0,92800.0,0.20092414]
[1740976294952,0.001,92801.0,92800.0,0.69079705]
[1740976295151,0.001,92801.0,92800.0,1.56907005]
[1740976295152,0.002,92801.0,92800.0,1.56907005]
[1740976295385,0.002,92801.0,92800.0,1.65012505]
[1740976295780,0.002,92801.0,92800.0,1.43079805]
[1740976297105,0.002,92801.0,92800.0,1.46306811]
[1740976297281,0.002,92801.0,92800.0,1.11247811]
[1740976297482,0.002,92801.0,92800.0,0.97619211]
[1740976297934,0.002,92801.0,92800.0,0.31281311]
[1740976298609,0.002,92801.0,92800.0,0.45911605]
[1740976299793,0.002,92801.0,92800.0,0.287327]
[1740976300001,0.002,92801.0,92800.0,0.208627]
[1740976300615,0.001,92801.0,92800.0,0.204627]
[1740976300814,0.001,92801.0,92800.0,0.208627]
[1740976301013,0.002,92801.0,92800.0,0.208627]
[1740976302423,0.001,92801.0,92800.0,0.204627]
[1740976302770,0.002,92801.0,92800.0,0.063153]
[1740976303059,0.03195076,92801.0,92800.0,0.063153]
[1740976303441,0.17742276,92801.0,92800.0,0.063153]
[1740976303645,0.03095076,92801.0,92800.0,0.059153]
[1740976303847,0.03283653,92801.0,92800.0,0.05139209]
[1740976304027,0.03383653,92801.0,92800.0,0.05539209]
[1740976304562,0.03383653,92801.0,92800.0,0.05339209]
[1740976304767,0.03283653,92801.0,92800.0,0.05339209]
[1740976304969,0.03383653,92801.0,92800.0,0.05539209]
[1740976305170,0.03195076,92801.0,92800.0,0.05339209]
[1740976305345,0.03095076,92801.0,92800.0,0.0573235]
[1740976305784,0.03195076,92801.0,92800.0,0.05356259]
[1740976305963,0.03295076,92801.0,92800.0,0.0633235]
[1740976306641,0.03195076,92801.0,92800.0,0.0593235]
[1740976306993,0.03295076,92801.0,92800.0,0.0633235]
[1740976307945,0.03095076,92801.0,92800.0,0.0613235]
[1740976308148,0.03195076,92801.0,92800.0,0.0633235]
[1740976309189,0.03195076,92801.0,92800.0,0.2087975]
[1740976309587,0.03195076,92801.0,92800.0,0.0633235]
[1740976309984,0.03195076,92801.0,92800.0,0.05556259]
[1740976310193,0.17742276,92801.0,92800.0,0.05556259]
[1740976310795,0.17642276,92801.0,92800.0,0.05356259]
[1740976311230,0.17742276,92801.0,92800.0,0.05556259]
[1740976311544,0.17642276,92801.0,92800.0,0.05156259]
[1740976311898,0.17742276,92801.0,92800.0,0.05556259]
[1740976312306,0.03195076,92801.0,92800.0,0.05556259]
[1740976312606,0.03383658,92801.0,92800.0,0.0633235]
[1740976312803,0.03195076,92801.0,92800.0,0.0633235]
[1740976313453,0.03095076,92801.0,92800.0,0.2047975]
[1740976313986,0.02995076,92801.0,92800.0,0.2027975]
[1740976314337,0.03095076,92801.0,92800.0,0.2047975]
[1740976314544,0.001,92801.0,92800.0,0.8175525]
[1740976314751,0.03195076,92801.0,92800.0,1.0751265]
[1740976314950,0.03195076,92801.0,92800.0,0.2087975]
[1740976315380,0.03195076,92801.0,92800.0,0.3403585]
[1740976315985,0.03195076,92801.0,92800.0,0.2087975]
[1740976316870,0.03195076,92801.0,92800.0,0.0633235]
[1740976318580,0.03229176,92801.0,92800.0,0.0633235]
[1740976320477,0.14112878,92801.0,92800.0,0.0633235]
[1740976324682,0.14112878,92801.0,92800.0,0.2087975]
[1740976325021,0.14112878,92801.0,92800.0,0.05556259]
[1740976325155,0.14112878,92801.0,92800.0,0.0633235]
[1740976326148,1.14112878,92801.0,92800.0,0.0633235]
[1740976326642,1.14112878,92801.0,92800.0,0.05556259]
[1740976327157,1.28660078,92801.0,92800.0,0.0633235]
[1740976327565,1.28660078,92801.0,92800.0,0.05556259]
[1740976327989,1.28560078,92801.0,92800.0,0.05156259]
[1740976328150,1.28460078,92801.0,92800.0,0.04956259]
[1740976328360,1.28660078,92801.0,92800.0,0.05556259]
[1740976328563,1.36790078,92801.0,92800.0,0.05556259]
[1740976329164,1.37894911,92801.0,92800.0,0.05556259]
[1740976329361,1.36790078,92801.0,92800.0,0.05556259]
[1740976329964,1.69200078,92801.0,92800.0,0.05556259]
[1740976330579,1.69100078,92801.0,92800.0,0.05356259]
[1740976330815,1.69000078,92801.0,92800.0,0.04956259]
[1740976331013,1.69100078,92801.0,92800.0,0.05456259]
[1740976331383,1.69100078,92801.0,92800.0,0.05356259]
[1740976331510,1.69000078,92801.0,92800.0,0.04956259]
[1740976331708,1.69000078,92801.0,92800.0,0.05156259]
[1740976331916,1.69100078,92801.0,92800.0,0.05356259]
[1740976332352,1.71284953,92801.0,92800.0,0.05556259]
[1740976333184,1.56737753,92801.0,92800.0,0.05556259]
[1740976333868,1.46422878,92801.0,92800.0,0.05556259]
[1740976334075,1.43427802,92801.0,92800.0,0.19603659]
[1740976334481,1.46422878,92801.0,92800.0,0.05056259]
[1740976334695,1.46422878,92801.0,92800.0,0.0583235]
[1740976335299,1.46422878,92801.0,92800.0,0.05056259]
[1740976338222,1.43427802,92801.0,92800.0,0.19603659]
[1740976338536,1.325441,92801.0,92800.0,0.2037975]
[1740976338721,1.35539176,92801.0,92800.0,0.2037975]
[1740976339523,1.325441,92801.0,92800.0,0.2037975]
[1740976339751,1.35539176,92801.0,92800.0,0.2037975]
[1740976341486,1.35539176,92801.0,92800.0,0.0583235]
[1740976341487,1.46422878,92801.0,92800.0,0.0583235]
[1740976341807,1.46422878,92801.0,92800.0,0.05056259]
[1740976345506,1.46422878,92801.0,92800.0,0.19603659]
[1740976345706,1.46422878,92801.0,92800.0,0.20287859]
[1740976345963,1.46422878,92801.0,92800.0,0.0583235]
[1740976346162,1.46422878,92801.0,92800.0,0.2037975]
[1740976346455,1.46422878,92801.0,92800.0,0.0583235]
[1740976346614,1.46422878,92801.0,92800.0,0.05056259]
[1740976347239,1.46422878,92801.0,92800.0,0.0583235]
[1740976347480,1.46422878,92801.0,92800.0,0.2037975]
[1740976347650,1.325441,92801.0,92800.0,0.2037975]
[1740976348056,1.35539176,92801.0,92800.0,0.2037975]
[1740976348299,1.35539176,92801.0,92800.0,0.19603659]
[1740976348524,1.35539176,92801.0,92800.0,0.22637324]